bitfinex-derivatives/quotes_ETHF0:USTF0_20260119
["timestamp","ask_amount","ask_price","bid_price","bid_amount"]
[1768862281947,0.86976772,3206.5,3205.5,1.29781486]
[1768862282149,2.00347782,3206.9,3205.5,1.29781486]
[1768862282343,0.86956594,3206.8,3205.4,40.8]
[1768862282549,2.00347782,3206.9,3205.1,0.1561]
[1768862282550,2.00347782,3206.6,3205.5,5.197]
[1768862282749,2.00347782,3206.4,3205.5,5.197]
[1768862285663,2.00347782,3206.9,3205.5,5.197]
[1768862285962,2.00347782,3206.7,3205.5,5.197]
[1768862286259,0.86886931,3206.6,3205.5,5.197]
[1768862286454,0.86886931,3206.5,3205.5,5.197]
[1768862286758,2.00347782,3206.7,3205.5,5.197]
[1768862286950,0.86875392,3206.6,3205.5,5.197]
[1768862287150,0.86875392,3206.5,3205.5,5.197]
[1768862287352,2.00347782,3206.7,3205.5,5.197]
[1768862287560,0.86866424,3206.6,3205.5,5.197]
[1768862287753,0.86866424,3206.5,3205.5,5.197]
[1768862288056,2.00347782,3206.7,3205.5,5.197]
[1768862288252,0.86860751,3206.6,3205.5,5.197]
[1768862288459,2.15948782,3207.0,3205.5,5.197]
[1768862288759,0.86860996,3206.9,3205.5,5.197]
[1768862288948,0.86860996,3206.8,3205.6,40.8]
[1768862289255,0.86860996,3206.7,3205.6,40.8]
[1768862289461,0.86860996,3206.6,3205.6,40.8]
[1768862289757,2.15948782,3207.0,3205.6,40.8]
[1768862289959,2.87205574,3206.9,3205.6,40.8]
[1768862290157,0.86857792,3206.8,3205.6,40.8]
[1768862290357,0.86857792,3206.7,3205.6,40.8]
[1768862290558,0.86857792,3206.6,3205.6,40.8]
[1768862290753,2.00347782,3206.9,3205.6,40.8]
[1768862290959,0.86855666,3206.8,3205.6,40.8]
[1768862291158,0.86855666,3206.7,3205.6,40.8]
[1768862291359,0.86855666,3206.6,3205.6,40.8]
[1768862291562,2.00347782,3206.9,3205.6,40.8]
[1768862291759,0.86853589,3206.8,3205.6,40.8]
[1768862291961,0.86853589,3206.7,3205.6,40.8]
[1768862292164,0.86853589,3206.6,3205.6,40.8]
[1768862292358,2.00347782,3206.9,3205.6,40.8]
[1768862292661,0.86852177,3206.8,3205.6,40.8]
[1768862292961,0.86852177,3206.7,3205.6,40.8]
[1768862293161,0.86852177,3206.6,3205.6,40.8]
[1768862293461,2.00347782,3206.9,3205.6,40.8]
[1768862293658,0.86837628,3206.8,3205.6,40.8]
[1768862293859,0.86837628,3206.7,3205.6,40.8]
[1768862294069,0.86837628,3206.6,3205.6,40.8]
[1768862294251,2.00347782,3206.9,3205.6,40.8]
[1768862294453,2.87168846,3206.8,3205.6,40.8]
[1768862294653,0.86821064,3206.7,3205.6,40.8]
[1768862296064,0.86821064,3206.7,3205.5,5.197]
[1768862296065,2.00347782,3206.6,3205.5,5.197]
[1768862296964,2.00347782,3206.6,3205.3,42.09781486]
[1768862297164,2.00347782,3206.6,3205.4,5.211]
[1768862297760,2.00347782,3206.6,3205.3,42.09781486]
[1768862297966,2.00347782,3206.6,3205.4,5.213]
[1768862298760,2.00347782,3206.6,3205.3,42.09781486]
[1768862298966,2.00347782,3206.6,3205.4,5.215]
[1768862301370,2.00347782,3206.4,3205.4,5.215]
[1768862306665,2.00347782,3206.4,3205.2,42.25390486]
[1768862306867,2.00347782,3206.4,3205.3,5.228]
[1768862308376,2.00347782,3206.4,3205.2,42.25390486]
[1768862308674,2.00347782,3206.4,3205.3,5.231]
[1768862317079,2.00347782,3206.4,3205.6,1.29843638]
[1768862317377,2.00347782,3206.4,3205.7,5.247]
[1768862320682,2.00347782,3206.4,3205.2,40.95609]
[1768862320879,2.00347782,3206.4,3205.3,6.54943638]
[1768862321678,2.00347782,3206.4,3205.3,1.29843638]
[1768862321888,2.00347782,3206.4,3205.4,5.253]
[1768862322078,0.87031758,3206.3,3205.4,5.253]
[1768862322378,1.74038019,3206.3,3205.4,5.253]
[1768862327089,1.74038019,3206.3,3205.3,1.29843638]
[1768862327385,1.74038019,3206.3,3205.4,5.26]
[1768862328586,1.74038019,3206.3,3205.1,1.29843638]
[1768862328785,1.74038019,3206.1,3205.2,3.351]
[1768862329476,1.74038019,3206.1,3205.1,1.29843638]
[1768862336402,1.74038019,3206.1,3205.0,0.0035093]
[1768862336604,1.55498471,3205.9,3205.0,0.0035093]
[1768862339202,1.55498471,3205.7,3205.0,0.0035093]
[1768862339893,1.55498471,3205.7,3204.4,1.29843638]
[1768862340902,1.55498471,3205.7,3204.4,1.30095546]
[1768862345602,1.55498471,3205.4,3204.4,0.00251908]
[1768862345805,1.55498471,3205.1,3204.4,0.00251908]
[1768862345994,1.55728715,3205.1,3203.8,3.60543638]
[1768862346200,1.55728715,3205.1,3203.8,44.40543638]
[1768862346707,1.55728715,3205.1,3203.8,1.29843638]
[1768862346902,1.55728715,3205.1,3203.8,1.30237031]
[1768862352614,1.55728715,3205.1,3204.0,1.29843638]
[1768862353612,2.85572353,3205.1,3203.8,0.00393393]
[1768862353912,1.55498471,3205.0,3203.8,0.00393393]
[1768862354411,1.55498471,3204.8,3203.8,0.00393393]
[1768862356009,1.55498471,3204.3,3203.8,0.00393393]
[1768862356313,1.55498471,3204.3,3203.0,1.29843638]
[1768862356516,1.55498471,3204.3,3203.2,1.29843638]
[1768862357218,1.55498471,3204.3,3203.2,1.30096717]
[1768862358306,1.55498471,3204.1,3203.2,0.00253079]
[1768862360011,1.55498471,3204.1,3202.4,1.976]
[1768862360216,1.55498471,3204.1,3202.6,1.29843638]
[1768862360418,1.11787063,3204.6,3202.6,1.29843638]
[1768862360419,1.55498471,3203.8,3202.6,1.29843638]
[1768862361006,1.55498471,3203.8,3202.6,1.30186954]
[1768862361319,1.55498471,3203.8,3202.6,0.00343316]
[1768862362808,1.55498471,3203.6,3202.6,0.00343316]
[1768862364809,1.54489966,3203.4,3202.6,0.00343316]
[1768862367116,1.54489966,3203.2,3202.6,0.00343316]
[1768862367321,1.54489966,3203.2,3201.9,1.29843638]
[1768862367515,1.54489966,3203.2,3202.0,0.00253079]
[1768862368308,1.54489966,3203.2,3202.0,0.00522616]
[1768862368718,1.54489966,3203.2,3202.0,0.00269537]
[1768862375725,1.54489966,3203.2,3202.2,1.29843638]
[1768862375915,0.15618,3203.4,3202.5,1.29843638]
[1768862376114,1.54489966,3203.6,3202.5,1.29843638]
[1768862376411,1.54489966,3203.6,3202.7,0.00253079]
[1768862376822,1.54489966,3203.6,3202.8,0.00253079]
[1768862377120,1.54489966,3203.6,3202.7,0.00253079]
[1768862377517,1.54489966,3203.6,3202.8,0.00253079]
[1768862377718,1.54489966,3203.6,3202.8,1.29843638]
[1768862377915,1.70104966,3204.0,3202.9,0.00253079]
[1768862378116,1.70104966,3204.0,3202.8,1.29843638]
[1768862378428,1.70104966,3204.0,3203.0,0.00253079]
[1768862378613,1.54489966,3204.0,3203.1,0.00253079]
[1768862379021,1.54489966,3204.0,3203.2,0.00253079]
[1768862379221,1.54489966,3204.0,3202.9,0.00253079]
[1768862379725,1.54489966,3204.0,3203.1,0.00253079]
[1768862380025,1.54489966,3204.0,3202.9,0.00253079]
[1768862380425,1.54489966,3204.0,3203.1,0.00253079]
[1768862380622,1.54489966,3204.0,3202.9,0.00253079]
[1768862381130,1.54489966,3204.0,3203.1,0.00253079]
[1768862381328,1.54489966,3204.0,3202.9,0.00253079]
[1768862381626,1.54489966,3204.0,3203.1,0.00253079]
[1768862381826,1.54489966,3204.0,3202.9,0.00253079]
[1768862382232,0.86893961,3203.9,3203.1,0.00253079]
[1768862382432,1.54489966,3204.0,3203.2,0.00253079]
[1768862382928,1.54489966,3204.0,3202.9,1.30048785]
[1768862383124,1.54489966,3204.0,3203.4,0.00253079]
[1768862383627,1.54489966,3204.0,3202.9,1.30048785]
[1768862383831,1.54489966,3204.0,3203.4,0.00253079]
[1768862384431,1.54489966,3204.0,3203.6,0.00253079]
[1768862384637,1.54489966,3204.0,3202.9,1.30048785]
[1768862384828,1.54489966,3204.0,3203.4,0.00253079]
[1768862385024,1.54489966,3204.0,3202.9,1.30048785]
[1768862385329,1.54489966,3204.0,3203.4,0.00253079]
[1768862385526,1.54489966,3204.0,3203.3,0.00253079]
[1768862385731,1.54489966,3204.0,3203.4,0.00253079]
[1768862386135,1.54489966,3204.0,3203.6,0.00253079]
[1768862386340,1.54489966,3204.0,3202.6,1.30048785]
[1768862386341,1.54489966,3204.0,3203.2,0.00253079]
[1768862386726,1.54489966,3204.0,3203.5,0.00253079]
[1768862386933,1.54489966,3204.0,3203.2,0.00253079]
[1768862387333,1.54489966,3204.0,3203.5,0.00253079]
[1768862387535,1.54489966,3204.0,3203.7,0.00253079]
[1768862387739,1.54489966,3204.0,3203.2,0.00253079]
[1768862388329,1.44466474,3203.8,3203.5,0.00253079]
[1768862388535,1.44466474,3203.8,3203.7,0.00253079]
[1768862388735,1.44466474,3203.8,3203.3,0.00253079]
[1768862389130,1.44466474,3203.8,3203.7,0.00253079]
[1768862389330,1.44466474,3203.8,3203.3,0.00253079]
[1768862389736,1.44466474,3203.8,3203.7,0.00253079]
[1768862389934,1.44466474,3203.8,3203.3,0.00253079]
[1768862390634,1.44466474,3203.8,3202.6,1.30048785]
[1768862390838,1.44466474,3203.8,3203.3,0.00253079]
[1768862391344,1.44466474,3203.8,3203.7,0.00253079]
[1768862391542,1.44466474,3203.8,3202.6,1.30048785]
[1768862398451,1.44466474,3203.8,3202.7,5.259]
[1768862400048,1.54272393,3204.3,3202.7,5.259]
[1768862400245,1.11787063,3204.9,3203.1,1.30048785]
[1768862400552,0.87089412,3204.8,3203.1,1.45667785]
[1768862400752,0.87089412,3204.7,3203.1,1.45667785]
[1768862400954,0.87089412,3204.6,3203.1,1.45667785]
[1768862401144,1.11787063,3205.0,3203.1,0.15619]
[1768862401449,0.87142089,3204.9,3202.6,1.45670785]
[1768862401657,0.15613,3204.5,3202.7,5.26]
[1768862401848,0.87142089,3204.4,3202.7,5.26]
[1768862402041,0.87142089,3204.3,3202.7,5.26]
[1768862402240,1.54272393,3204.4,3202.7,5.26]
[1768862402442,1.54272393,3204.2,3202.7,5.26]
[1768862405349,0.87212093,3204.1,3202.7,5.26]
[1768862405541,1.54272393,3204.2,3202.7,5.26]
[1768862405742,0.87212256,3204.1,3202.7,5.26]
[1768862406052,1.54272393,3204.2,3202.7,5.26]
[1768862406244,0.87189141,3204.1,3202.7,5.26]
[1768862406450,1.54272393,3204.2,3202.7,5.26]
[1768862406745,0.87219404,3204.1,3202.7,6.76492409]
[1768862406950,2.66059456,3204.6,3203.0,2.80541194]
[1768862407151,0.87221224,3204.5,3203.0,2.80541194]
[1768862407353,0.87221224,3204.4,3203.0,2.80541194]
[1768862407539,1.54272393,3204.6,3203.5,1.30048785]
[1768862407745,2.66059456,3205.0,3203.6,5.268]
[1768862407946,0.87253962,3204.9,3203.6,5.268]
[1768862408256,0.87253962,3204.8,3203.7,40.8]
[1768862408457,0.87253962,3204.7,3203.7,40.8]
[1768862408646,1.54272393,3205.0,3203.7,40.8]
[1768862408847,0.87228285,3204.9,3203.7,40.8]
[1768862409052,0.87228285,3204.8,3203.7,40.8]
[1768862409255,1.54272393,3205.0,3203.7,40.8]
[1768862409553,0.87201847,3204.9,3203.7,40.8]
[1768862409749,0.00230244,3205.1,3203.7,42.30492409]
[1768862409956,0.87206614,3205.0,3203.7,42.30492409]
[1768862410151,0.00230244,3205.1,3203.7,42.30492409]
[1768862410351,0.87170428,3205.0,3203.7,42.30492409]
[1768862410546,0.00230244,3205.1,3203.7,42.30492409]
[1768862410746,0.87170316,3205.0,3203.7,42.30492409]
[1768862411052,0.00230244,3205.1,3203.7,42.30492409]
[1768862411255,0.87141844,3205.0,3203.7,42.30492409]
[1768862411454,0.00230244,3205.1,3203.7,42.30492409]
[1768862411656,0.87142725,3205.0,3203.7,42.30492409]
[1768862411858,0.00230244,3205.1,3203.7,42.30492409]
[1768862412858,0.00230244,3205.1,3203.9,1.30048785]
[1768862417568,0.00230244,3205.1,3204.0,40.8]
[1768862419368,0.00230244,3205.1,3204.1,1.50492409]
[1768862419569,0.00230244,3205.1,3204.2,5.276]
[1768862422974,0.00230244,3205.1,3204.3,40.8]
[1768862423169,0.00230244,3205.1,3204.3,40.80297397]
[1768862432674,0.00230244,3205.1,3204.4,5.299]
[1768862434876,0.00230244,3205.1,3204.3,0.00297397]
[1768862435075,0.00230244,3205.1,3204.5,5.299]
[1768862436279,3.02931451,3205.6,3204.5,5.299]
[1768862436481,0.87152493,3205.5,3204.5,5.299]
[1768862436677,3.02931451,3205.6,3204.5,5.299]
[1768862436875,0.87152476,3205.5,3204.5,5.299]
[1768862437077,3.02931451,3205.6,3204.5,5.299]
[1768862437376,0.87477887,3205.5,3204.5,5.299]
[1768862437579,0.00277276,3205.5,3204.5,5.299]
[1768862438079,0.87221508,3205.4,3204.5,5.299]
[1768862438281,0.00277276,3205.5,3204.5,5.299]
[1768862440883,0.00277276,3205.5,3204.5,6.59822301]
[1768862442573,0.8728405,3205.4,3204.5,6.59822301]
[1768862442770,0.00277276,3205.5,3204.5,6.59822301]
[1768862442977,0.87284082,3205.4,3204.5,6.59822301]
[1768862443177,0.00277276,3205.5,3204.5,6.59822301]
[1768862443376,0.87290056,3205.4,3204.5,6.59822301]
[1768862443586,0.00277276,3205.5,3204.5,6.59822301]
[1768862443779,0.87290133,3205.4,3204.5,6.59822301]
[1768862444086,0.00277276,3205.5,3204.5,6.59822301]
[1768862444279,0.87297056,3205.4,3204.5,6.59822301]
[1768862444481,0.00277276,3205.5,3204.5,6.59822301]
[1768862444777,0.87297058,3205.4,3204.5,6.59822301]
[1768862444978,0.00277276,3205.5,3204.5,6.59822301]
[1768862445179,0.87297176,3205.4,3204.5,6.59822301]
[1768862445385,0.00277276,3205.5,3204.5,6.59822301]
[1768862445583,0.87305743,3205.4,3204.5,6.59822301]
[1768862445785,0.00277276,3205.5,3204.5,6.59822301]
[1768862445984,0.87305668,3205.4,3204.5,6.59822301]
[1768862446282,0.00277276,3205.5,3204.5,6.59822301]
[1768862446488,0.87316216,3205.4,3204.5,6.59822301]
[1768862446698,0.00277276,3205.5,3204.5,6.59822301]
[1768862446891,0.87316218,3205.4,3204.5,6.59822301]
[1768862447078,0.00277276,3205.5,3204.5,6.59822301]
[1768862447284,0.87329628,3205.4,3204.5,6.59822301]
[1768862447586,0.00277276,3205.5,3204.5,6.59822301]
[1768862447784,0.87329687,3205.4,3204.5,6.59822301]
[1768862447991,0.00277276,3205.5,3204.5,6.59822301]
[1768862448283,0.87347958,3205.4,3204.5,6.59822301]
[1768862448490,0.00277276,3205.5,3204.5,6.59822301]
[1768862448681,0.87347898,3205.4,3204.5,6.59822301]
[1768862448878,0.00277276,3205.5,3204.5,6.59822301]
[1768862449081,0.873479,3205.4,3204.5,6.59822301]
[1768862449276,0.873479,3205.3,3204.5,6.59822301]
[1768862449481,0.00277276,3205.5,3204.5,6.59822301]
[1768862449682,0.87379559,3205.4,3204.5,6.59822301]
[1768862449887,0.87379559,3205.3,3204.5,6.59822301]
[1768862450190,0.00277276,3205.5,3204.5,6.59822301]
[1768862450394,0.87379129,3205.4,3204.5,6.59822301]
[1768862450690,0.87379129,3205.3,3204.5,6.59822301]
[1768862450891,0.00277276,3205.5,3204.5,6.59822301]
[1768862451093,0.87379057,3205.4,3204.5,6.59822301]
[1768862451293,0.00277276,3205.5,3204.5,6.59822301]
[1768862451593,0.87378464,3205.4,3204.5,6.59822301]
[1768862451894,0.00277276,3205.5,3204.5,6.59822301]
[1768862452084,0.87378489,3205.4,3204.5,6.59822301]
[1768862452285,0.00277276,3205.5,3204.5,6.59822301]
[1768862452584,0.87377917,3205.4,3204.5,6.59822301]
[1768862452789,0.00277276,3205.5,3204.5,6.59822301]
[1768862452987,0.87377934,3205.4,3204.5,10.19239084]
[1768862453293,0.00277276,3205.5,3204.8,1.29922301]
[1768862453594,0.87377411,3205.4,3204.8,1.29922301]
[1768862453790,0.00277276,3205.5,3204.8,1.29922301]
[1768862453982,0.87377382,3205.4,3204.8,1.29922301]
[1768862454185,0.00277276,3205.5,3204.8,1.29922301]
[1768862454484,0.87376199,3205.4,3204.8,1.29922301]
[1768862454685,0.00277276,3205.5,3204.8,1.29922301]
[1768862454884,0.87376203,3205.4,3204.8,1.29922301]
[1768862455086,0.00277276,3205.5,3204.8,1.29922301]
[1768862455380,0.87374805,3205.4,3204.8,1.29922301]
[1768862455584,0.00277276,3205.5,3204.8,1.29922301]
[1768862455786,0.87374818,3205.4,3204.8,1.29922301]
[1768862455990,0.00277276,3205.5,3204.8,1.29922301]
[1768862456293,0.8737473,3205.4,3204.8,1.29922301]
[1768862456491,0.00277276,3205.5,3204.8,1.29922301]
[1768862456690,0.87373474,3205.4,3204.8,1.29922301]
[1768862456891,0.00277276,3205.5,3204.8,1.29922301]
[1768862457090,0.87373624,3205.4,3204.8,1.29922301]
[1768862457292,0.00277276,3205.5,3204.8,1.29922301]
[1768862457494,0.87372826,3205.4,3204.8,1.29922301]
[1768862457692,0.00277276,3205.5,3204.8,1.29922301]
[1768862457893,0.87372855,3205.4,3204.8,1.29922301]
[1768862458090,0.00277276,3205.5,3204.8,1.29922301]
[1768862458291,0.87371952,3205.4,3204.8,1.29922301]
[1768862458496,0.00277276,3205.5,3204.8,1.29922301]
[1768862458693,0.8737195,3205.4,3204.8,1.29922301]
[1768862458992,0.00277276,3205.5,3204.8,1.29922301]
[1768862459194,0.87371447,3205.4,3204.6,4.89339084]
[1768862459396,0.00277276,3205.5,3204.6,4.89339084]
[1768862459593,0.87371203,3205.4,3204.6,4.89339084]
[1768862459793,0.00277276,3205.5,3204.7,40.8]
[1768862459996,0.87371319,3205.4,3204.7,40.8]
[1768862460290,0.00277276,3205.5,3204.6,4.89339084]
[1768862460490,0.87370819,3205.4,3204.6,4.89339084]
[1768862460690,0.00277276,3205.5,3204.6,4.89339084]
[1768862460898,0.87197511,3205.4,3204.5,5.299]
[1768862461097,0.87196198,3205.3,3204.5,5.299]
[1768862461297,0.00277276,3205.5,3204.5,5.299]
[1768862461494,0.8719606,3205.4,3204.5,5.299]
[1768862461798,0.8719606,3205.3,3204.5,5.299]
[1768862461993,0.00277276,3205.5,3204.5,5.299]
[1768862462197,0.87195271,3205.4,3204.5,5.299]
[1768862462404,0.87195271,3205.3,3204.5,5.299]
[1768862462591,0.00277276,3205.5,3204.5,5.299]
[1768862462792,0.87195848,3205.4,3204.5,5.299]
[1768862462988,0.00277276,3205.5,3204.5,5.299]
[1768862462989,0.87195848,3205.3,3204.5,5.299]
[1768862463290,0.00277276,3205.5,3204.5,5.299]
[1768862463491,0.87198317,3205.4,3204.5,5.299]
[1768862463691,0.87198317,3205.3,3204.5,5.299]
[1768862463900,0.00277276,3205.5,3204.5,5.299]
[1768862464088,0.87198269,3205.4,3204.5,5.299]
[1768862464294,0.87198269,3205.3,3204.5,5.299]
[1768862464491,0.00277276,3205.5,3204.5,5.299]
[1768862464687,0.87201318,3205.4,3204.5,5.299]
[1768862464890,0.00277276,3205.5,3204.5,5.299]
[1768862464891,0.87201318,3205.3,3204.5,5.299]
[1768862465098,0.00277276,3205.5,3204.5,5.299]
[1768862465298,0.87203864,3205.4,3204.5,5.299]
[1768862465491,0.87203864,3205.3,3204.6,1.29922301]
[1768862465690,0.00277276,3205.5,3204.6,1.29922301]
[1768862465892,0.87203921,3205.4,3204.6,1.29922301]
[1768862466190,0.87203921,3205.3,3204.6,1.29922301]
[1768862466391,0.00277276,3205.5,3204.6,1.29922301]
[1768862466591,0.87206077,3205.4,3204.6,1.29922301]
[1768862466791,0.87206077,3205.3,3204.6,1.29922301]
[1768862466993,0.00277276,3205.5,3204.6,1.29922301]
[1768862467192,0.87208666,3205.4,3204.6,1.29922301]
[1768862467392,0.87208666,3205.3,3204.6,1.29922301]
[1768862467599,0.00277276,3205.5,3204.6,1.29922301]
[1768862467798,0.87208526,3205.4,3204.6,1.29922301]
[1768862468000,0.87208526,3205.3,3204.6,1.29922301]
[1768862468200,0.00277276,3205.5,3204.6,1.29922301]
[1768862468394,0.8721145,3205.4,3204.6,1.29922301]
[1768862468599,0.8721145,3205.3,3204.6,1.29922301]
[1768862468801,0.00277276,3205.5,3204.6,1.29922301]
[1768862469103,0.87211504,3205.4,3204.6,1.29922301]
[1768862469299,0.87211504,3205.3,3204.6,1.29922301]
[1768862469501,0.00277276,3205.5,3204.6,1.29922301]
[1768862469699,0.87211045,3205.4,3204.6,1.29922301]
[1768862469894,0.87211045,3205.3,3204.6,1.29922301]
[1768862470100,1.67188443,3206.4,3205.2,1.29922301]
[1768862470397,0.86752057,3206.3,3205.2,6.63022301]
[1768862470598,3.55721705,3206.7,3205.2,6.63022301]
[1768862470799,0.86669143,3206.6,3205.2,6.63022301]
[1768862471000,0.86669143,3206.5,3205.2,1.29922301]
[1768862471201,0.86669143,3206.5,3205.3,5.33]
[1768862471405,0.86669143,3206.5,3205.5,1.29922301]
[1768862471606,0.00353969,3206.6,3205.8,1.29922301]
[1768862472510,3.55721705,3207.5,3206.1,1.29922301]
[1768862472806,0.86565762,3207.4,3206.1,1.29922301]
[1768862473103,4.42287467,3207.3,3206.1,1.29922301]
[1768862473300,0.86565762,3207.2,3205.8,1.29922301]
[1768862473609,0.00313591,3207.2,3205.8,1.29922301]
[1768862473905,0.00313591,3207.2,3205.8,42.09922301]
[1768862477206,4.85957597,3207.2,3205.8,40.8]
[1768862477410,4.85644006,3206.6,3205.2,5.328]
[1768862477908,4.85644006,3206.6,3205.2,46.128]
[1768862486615,4.58867942,3206.3,3204.8,3.75027783]
[1768862486821,4.58867942,3206.3,3204.9,5.34]
[1768862487022,3.28945641,3206.2,3204.8,46.29511]
[1768862487429,3.28945641,3206.2,3204.9,5.339]
[1768862487729,3.28945641,3205.9,3204.7,1.29922301]
[1768862487929,3.28945641,3205.9,3204.7,5.93222301]
[1768862488827,3.28945641,3205.9,3204.7,1.29922301]
[1768862489129,4.58867942,3205.7,3204.4,42.09922301]
[1768862489927,4.58867942,3205.7,3204.4,40.8]
[1768862490524,4.58867942,3205.7,3204.3,0.00297397]
[1768862490731,1.29922301,3205.3,3204.3,0.00297397]
[1768862491133,4.58867942,3205.3,3204.3,0.00297397]
[1768862491630,3.28945641,3205.2,3204.3,0.00297397]
[1768862492144,3.28945641,3205.2,3203.9,2.136]
[1768862492645,3.28945641,3205.2,3203.8,1.29922301]
[1768862493145,3.28945641,3205.2,3203.8,1.30314557]
[1768862493548,4.58867942,3205.0,3203.8,0.00392256]
[1768862495145,3.28945641,3204.9,3203.8,0.00392256]
[1768862495446,3.29224236,3204.9,3203.8,0.00392256]
[1768862495943,3.29224236,3204.9,3202.0,5.55903578]
[1768862496146,1.29922301,3202.7,3201.4,1.29922301]
[1768862496342,1.29922301,3203.0,3201.4,1.29922301]
[1768862496538,3.28945641,3203.2,3201.7,1.29922301]
[1768862496842,3.28945641,3203.2,3202.0,1.29922301]
[1768862498142,1.29922301,3203.5,3202.0,1.29922301]
[1768862498946,4.58867942,3203.5,3202.0,1.29922301]
[1768862499651,1.29922301,3202.2,3200.7,4.61736985]
[1768862500051,1.29922301,3202.2,3200.7,17.69105823]
[1768862500546,1.30191123,3202.2,3200.7,16.39561735]
[1768862500950,0.00268822,3202.2,3200.7,16.39561735]
[1768862505455,0.00268822,3202.2,3200.8,40.8]
[1768862505950,0.00268822,3202.2,3200.8,53.87368838]
[1768862509154,3.56861182,3202.2,3200.8,13.07368838]
[1768862509453,3.56861182,3202.2,3200.7,0.00378213]
[1768862509854,3.56861182,3202.2,3200.7,13.07747051]
[1768862511249,0.00268822,3202.2,3200.8,16.39007858]
[1768862511457,0.00268822,3202.2,3201.0,3.3163902]
[1768862511955,0.00268822,3202.2,3201.2,16.39007858]
[1768862512256,0.00268822,3202.2,3201.2,3.3163902]
[1768862512455,0.00268822,3202.2,3201.3,13.07368838]
[1768862512854,0.00268822,3202.2,3201.4,13.07368838]
[1768862513049,0.15621,3202.9,3201.6,3.28325477]
[1768862513452,0.15621,3202.9,3201.7,13.07368838]
[1768862514046,0.15998641,3202.9,3201.6,3.28325477]
[1768862514247,0.15998641,3202.9,3201.7,13.07368838]
[1768862514957,0.15998641,3202.9,3201.6,3.28325477]
[1768862515256,0.15998641,3202.9,3201.7,13.07368838]
[1768862516050,0.15998641,3202.9,3201.6,3.28325477]
[1768862516251,0.15998641,3202.9,3201.7,13.07368838]
[1768862516653,0.15998641,3202.9,3201.6,3.28325477]
[1768862516857,0.15998641,3202.9,3201.7,13.07368838]
[1768862517464,0.15998641,3202.9,3201.6,3.28325477]
[1768862517761,0.15998641,3202.9,3201.7,13.07368838]
[1768862518263,0.15998641,3202.9,3201.8,13.07368838]
[1768862518464,0.15998641,3202.9,3201.7,13.07368838]
[1768862518855,0.15998641,3202.9,3201.8,13.07368838]
[1768862519050,0.15998641,3202.9,3201.7,13.07368838]
[1768862519256,0.90435341,3202.8,3201.7,13.07368838]
[1768862519457,0.15998641,3202.9,3201.8,13.07368838]
[1768862519665,0.90435348,3202.8,3201.7,13.07368838]
[1768862519856,0.15998641,3202.9,3201.7,13.07368838]
[1768862520056,0.90427837,3202.8,3201.8,13.07368838]
[1768862520256,0.90499058,3202.7,3201.7,13.07368838]
[1768862520472,0.15998641,3202.9,3201.7,13.07368838]
[1768862520764,0.90497809,3202.8,3201.8,13.07368838]
[1768862520961,0.90497809,3202.7,3201.6,3.28325477]
[1768862521165,0.15998641,3202.9,3201.9,13.07368838]
[1768862521363,0.91486986,3202.8,3201.9,13.07368838]
[1768862521664,0.91486986,3202.7,3202.0,13.07368838]
[1768862521857,0.91486986,3202.6,3201.9,13.07368838]
[1768862522058,0.15998641,3202.9,3201.9,13.07368838]
[1768862522258,1.26223529,3202.9,3202.0,13.07368838]
[1768862522465,1.26223529,3202.9,3201.6,3.28325477]
[1768862522466,0.91487386,3202.8,3201.9,13.07368838]
[1768862522960,0.91487386,3202.8,3202.1,13.07368838]
[1768862523166,0.91487386,3202.8,3201.6,3.28325477]
[1768862523472,1.10224888,3202.8,3202.0,13.07368838]
[1768862523666,2.01712274,3202.8,3202.0,13.07368838]
[1768862523866,2.01712274,3202.8,3202.2,13.07368838]
[1768862524067,2.01712274,3202.8,3202.0,13.07368838]
[1768862524266,3.861,3202.7,3202.0,13.07368838]
[1768862524463,3.861,3202.7,3201.9,3.28325477]
[1768862524664,0.52234304,3202.9,3202.3,3.28325477]
[1768862524973,3.29026725,3203.8,3202.5,13.07368838]
[1768862525477,3.29026725,3203.8,3202.4,4.797]
[1768862525665,3.29026725,3204.3,3202.4,4.797]
[1768862525868,0.00224254,3203.8,3202.4,4.797]
[1768862526065,0.00224254,3203.8,3202.4,4.95323]
[1768862526367,0.00224254,3203.8,3203.0,13.07368838]
[1768862526573,0.00224254,3203.8,3203.0,13.07741678]
[1768862526765,0.00224254,3203.8,3203.0,0.0037284]
[1768862527072,0.00224254,3203.8,3203.5,13.07368838]
[1768862527265,3.29026725,3204.3,3203.5,13.07368838]
[1768862527666,3.29026725,3204.3,3203.0,0.0037284]
[1768862528263,3.29256324,3204.3,3203.0,0.0037284]
[1768862528671,3.29026725,3203.9,3203.0,0.0037284]
[1768862532986,2.503,3203.8,3203.0,0.0037284]
[1768862533179,3.29026725,3203.7,3203.0,0.0037284]
[1768862534973,3.29026725,3203.7,3203.4,13.07368838]
[1768862535375,3.29026725,3203.7,3203.6,13.07368838]
[1768862535679,3.29026725,3203.7,3203.4,13.07368838]
[1768862536181,3.29026725,3203.7,3203.6,13.07368838]
[1768862536366,3.29026725,3203.7,3203.4,13.07368838]
[1768862536574,0.90383522,3203.6,3203.4,13.07368838]
[1768862536875,3.29026725,3203.7,3203.6,13.07368838]
[1768862537073,3.29026725,3203.7,3203.4,13.07368838]
[1768862537074,4.19410315,3203.7,3203.4,13.07368838]
[1768862537274,0.9038359,3203.6,3203.4,13.07368838]
[1768862537474,3.29026725,3203.7,3203.6,13.07368838]
[1768862537778,4.19417153,3203.7,3203.4,13.07368838]
[1768862538079,0.90390428,3203.6,3203.4,13.07368838]
[1768862538267,3.29026725,3203.7,3203.5,13.07368838]
[1768862538471,3.29026725,3203.7,3203.4,13.07368838]
[1768862538472,0.90401224,3203.6,3203.4,13.07368838]
[1768862538771,3.29026725,3203.7,3203.4,13.07368838]
[1768862538978,3.29026725,3203.7,3203.6,13.07368838]
[1768862539180,4.18343964,3203.7,3203.4,13.07368838]
[1768862539372,2.503,3203.8,3203.4,13.07368838]
[1768862539675,2.503,3203.8,3203.5,13.07368838]
[1768862539875,2.503,3203.8,3203.0,0.0037284]
[1768862540074,2.503,3203.8,3203.4,13.07368838]
[1768862540486,2.503,3203.8,3203.6,13.07368838]
[1768862540683,2.503,3203.8,3203.4,13.07368838]
[1768862541084,5.79326725,3203.8,3203.6,13.07368838]
[1768862541282,5.79326725,3203.8,3203.4,13.07368838]
[1768862541676,5.79326725,3203.8,3203.6,13.07368838]
[1768862541878,5.79326725,3203.8,3203.4,13.07368838]
[1768862542386,5.79326725,3203.8,3203.0,0.0037284]
[1768862542572,5.79326725,3203.8,3203.6,13.07368838]
[1768862542978,5.79326725,3203.8,3203.7,13.07368838]
[1768862543184,6.69798052,3203.8,3203.4,13.07368838]